bitfinex-derivatives/quotes_SOLF0:USTF0_20250105
["timestamp","ask_amount","ask_price","bid_price","bid_amount"]
[1736119270570,7.38610586,213.58,213.53,2.3421]
[1736119270765,7.38610586,213.54,213.5,1.5239]
[1736119271464,7.38610586,213.54,213.49,17.25030188]
[1736119271867,2.7954,213.7,213.52,2.3422]
[1736119272058,0.74979012,213.69,213.61,7.38610586]
[1736119272368,7.38610586,213.68,213.61,7.38610586]
[1736119272759,7.38610586,213.68,213.63,2.341]
[1736119272966,7.38610586,213.68,213.61,7.38610586]
[1736119273163,9.98610586,213.68,213.61,7.38610586]
[1736119273879,7.38610586,213.68,213.64,2.3408]
[1736119274073,2.6,213.67,213.64,2.3408]
[1736119274570,7.38610586,213.66,213.64,2.3408]
[1736119275575,2.6,213.67,213.64,2.3408]
[1736119275768,7.38610586,213.66,213.64,2.3408]
[1736119278771,7.38610586,213.66,213.58,7.38610586]
[1736119278966,7.38610586,213.66,213.65,2.3408]
[1736119297799,2.34,213.73,213.67,2.3406]
[1736119297999,7.38610586,213.68,213.61,7.38610586]
[1736119298596,7.38610586,213.66,213.61,7.38610586]
[1736119299397,7.38610586,213.66,213.65,2.3408]
[1736119299598,7.38610586,213.66,213.56,28.51091965]
[1736119299795,7.38610586,213.63,213.57,13.86383577]
[1736119299990,7.38610586,213.63,213.61,2.3412]
[1736119302301,7.38610586,213.63,213.6,2.3413]
[1736119303804,7.38610586,213.61,213.55,4.87533218]
[1736119305402,7.38610586,213.61,213.58,2.3416]
[1736119306197,2.64,213.62,213.56,7.38610586]
[1736119306400,2.64,213.62,213.6,2.3414]
[1736119310807,7.38610586,213.61,213.58,2.3415]
[1736119311197,7.38610586,213.59,213.55,7.21723218]
[1736119313207,7.38610586,213.61,213.55,4.87533218]
[1736119313408,7.38610586,213.61,213.56,2.3418]
[1736119315711,2.64,213.6,213.55,12.26143804]
[1736119315914,2.64,213.6,213.57,2.3417]
[1736119316909,1.439,213.66,213.57,7.38610586]
[1736119317119,10.02610586,213.65,213.57,7.38610586]
[1736119317613,59.22240014,213.73,213.55,4.87533218]
[1736119317614,59.22240014,213.73,213.59,7.38610586]
[1736119317816,2.9049,213.72,213.63,7.38610586]
[1736119318013,15.45828309,213.7,213.63,7.38610586]
[1736119318213,10.71217723,213.7,213.67,2.3406]
[1736119320217,18.09828309,213.7,213.68,2.3405]
[1736119320417,18.09828309,213.7,213.63,7.38610586]
[1736119322119,18.09828309,213.7,213.66,2.3406]
[1736119322717,18.09828309,213.7,213.63,7.38610586]
[1736119322718,18.09828309,213.7,213.67,2.3406]
[1736119325711,7.38610586,213.68,213.67,2.3406]
[1736119330719,8.07217723,213.7,213.69,2.3404]
[1736119332927,8.07217723,213.7,213.67,2.3405]
[1736119333127,7.38610586,213.68,213.67,2.3405]
[1736119334122,7.38610586,213.68,213.61,7.38610586]
[1736119334321,7.38610586,213.66,213.58,2.62]
[1736119334522,7.38610586,213.66,213.59,7.38610586]
[1736119334722,7.38610586,213.66,213.61,2.3412]
[1736119334927,7.38610586,213.66,213.59,7.38610586]
[1736119335325,7.38610586,213.64,213.6,2.3413]
[1736119335719,7.38610586,213.64,213.57,121.15226804]
[1736119336730,7.38610586,213.62,213.57,113.76616218]
[1736119338436,7.38610586,213.62,213.58,2.3416]
[1736119339133,7.38610586,213.62,213.57,113.76616218]
[1736119339332,7.38610586,213.6,213.56,2.3417]
[1736119342342,7.38610586,213.6,213.55,4.87533218]
[1736119342529,7.38610586,213.58,213.51,2.7819]
[1736119342733,7.38610586,213.58,213.51,10.16800586]
[1736119342933,7.38610586,213.58,213.53,2.3421]
[1736119343335,7.38610586,213.56,213.5,7.91982991]
[1736119343535,7.38610586,213.56,213.51,2.3422]
[1736119343738,10.00610586,213.58,213.51,9.72830586]
[1736119345942,10.00610586,213.58,213.49,17.25030188]
[1736119345943,7.38610586,213.54,213.49,17.25030188]
[1736119347141,2.62,213.58,213.49,17.25030188]
[1736119347142,7.38610586,213.52,213.49,17.25030188]
[1736119349539,7.38610586,213.52,213.49,19.59280188]
[1736119352650,2.62,213.51,213.49,19.59280188]
[1736119353143,7.38610586,213.5,213.49,17.25030188]
[1736119354749,10.00610586,213.5,213.49,17.25030188]
[1736119354950,2.62,213.53,213.49,17.25030188]
[1736119355243,10.00610586,213.53,213.52,2.3422]
[1736119357644,7.38610586,213.53,213.52,2.3422]
[1736119357845,2.62,213.54,213.5,2.3424]
[1736119358053,7.38610586,213.55,213.49,17.25030188]
[1736119358248,7.38610586,213.53,213.49,17.25030188]
[1736119358443,7.38610586,213.53,213.51,2.3422]
[1736119358642,7.38610586,213.53,213.49,17.25030188]
[1736119358843,7.38610586,213.5,213.49,19.59280188]
[1736119359353,7.38610586,213.52,213.49,19.59280188]
[1736119359652,2.62,213.52,213.5,2.3424]
[1736119359854,3.0179,213.59,213.49,17.25030188]
[1736119359855,7.38610586,213.54,213.49,17.25030188]
[1736119360146,7.38610586,213.52,213.51,2.3423]
[1736119360752,7.38610586,213.52,213.5,2.3424]
[1736119368364,3.0179,213.59,213.49,17.25030188]
[1736119368656,1.4111,213.66,213.49,24.63640774]
[1736119368657,2.62,213.58,213.49,24.63640774]
[1736119368854,7.38610586,213.57,213.54,2.3419]
[1736119369055,7.38610586,213.57,213.49,24.63640774]
[1736119370752,7.38610586,213.57,213.55,2.3419]
[1736119372758,7.38610586,213.57,213.54,2.342]
[1736119374352,7.38610586,213.55,213.54,2.342]
[1736119374654,2.9327,213.65,213.57,2.3417]
[1736119374855,7.38610586,213.6,213.57,2.3417]
[1736119376450,7.38610586,213.58,213.49,17.25030188]
[1736119376656,7.38610586,213.58,213.5,7.38610586]
[1736119377255,7.38610586,213.58,213.56,2.3418]
[1736119379956,2.341,213.64,213.57,2.3416]
[1736119380158,7.38610586,213.62,213.54,7.38610586]
[1736119381261,1.4832,213.73,213.58,7.38610586]
[1736119381460,7.38610586,213.66,213.58,7.38610586]
[1736119382262,7.38610586,213.66,213.6,7.38610586]
[1736119382463,7.38610586,213.68,213.53,4.3316]
[1736119382665,7.38610586,213.66,213.59,7.38610586]
[1736119382863,7.38610586,213.65,213.62,2.3411]
[1736119383081,7.38610586,213.63,213.54,7.49550032]
[1736119383262,7.38610586,213.63,213.55,7.38610586]
[1736119383566,7.38610586,213.63,213.59,2.3414]
[1736119385465,7.38610586,213.63,213.6,2.3413]
[1736119385662,2.62,213.67,213.59,7.38610586]
[1736119385964,7.38610586,213.67,213.59,10.00610586]
[1736119386164,7.38610586,213.67,213.6,1.3879]
[1736119386373,7.38610586,213.67,213.61,7.38610586]
[1736119386868,7.38610586,213.67,213.6,1.3879]
[1736119387863,8.07217723,213.7,213.61,7.38610586]
[1736119388063,7.38610586,213.69,213.66,2.3406]
[1736119390965,7.38610586,213.69,213.67,2.3406]
[1736119391664,7.38610586,213.69,213.61,10.26190586]
[1736119391867,7.38610586,213.67,213.61,2.8758]
[1736119392261,8.07217723,213.7,213.61,2.8758]
[1736119392466,7.38610586,213.68,213.65,2.3408]
[1736119393972,7.38610586,213.66,213.64,2.3409]
[1736119394472,7.38610586,213.66,213.61,2.8758]
[1736119394773,7.38610586,213.66,213.62,2.3411]
[1736119397372,7.38610586,213.64,213.62,2.3411]
[1736119398574,7.38610586,213.64,213.6,2.3413]
[1736119398775,7.38610586,213.62,213.6,2.3413]
[1736119398976,7.38610586,213.62,213.57,2.64]
[1736119399166,7.38610586,213.62,213.59,2.3415]
[1736119399574,7.38610586,213.6,213.54,12.26160618]
[1736119399774,7.38610586,213.6,213.57,2.3416]
[1736119400672,7.38610586,213.6,213.54,7.51550032]
[1736119401076,7.38610586,213.6,213.54,4.87550032]
[1736119402576,7.38610586,213.6,213.58,2.3416]
[1736119402777,7.38610586,213.62,213.58,2.3416]
[1736119406782,7.38610586,213.64,213.6,2.3413]
[1736119409390,7.38610586,213.63,213.6,2.3413]
[1736119409578,7.38610586,213.63,213.61,2.3412]
[1736119410483,4.9806,213.67,213.61,2.3412]
[1736119410681,7.38610586,213.63,213.61,2.3412]
[1736119415889,7.38610586,213.63,213.58,2.3416]
[1736119416082,7.38610586,213.6,213.58,2.3416]
[1736119419185,7.38610586,213.62,213.58,2.3416]
[1736119420289,7.38610586,213.6,213.58,2.3416]
[1736119420884,7.38610586,213.6,213.54,4.87550032]
[1736119421084,7.38610586,213.58,213.57,2.3417]
[1736119421792,7.38610586,213.58,213.55,2.3419]
[1736119423793,7.38610586,213.6,213.56,2.3418]
[1736119429900,7.38610586,213.58,213.56,2.3418]
[1736119432799,7.38610586,213.63,213.54,12.26160618]
[1736119432998,2.62,213.64,213.56,7.38610586]
[1736119433195,7.38610586,213.64,213.62,2.3411]
[1736119435498,7.38610586,213.64,213.63,2.341]
[1736119438804,10.69376012,213.67,213.56,7.38610586]
[1736119439002,10.69376012,213.67,213.64,2.3409]
[1736119439203,7.38610586,213.65,213.64,2.3409]
[1736119440205,7.38610586,213.65,213.55,2.62]
[1736119440508,7.38610586,213.62,213.61,2.3412]
[1736119441808,7.38610586,213.62,213.6,2.3414]
[1736119444008,8.07376012,213.67,213.63,2.341]
[1736119444208,7.38610586,213.66,213.63,2.341]
[1736119445207,7.38610586,213.66,213.59,7.38610586]
[1736119445408,7.38610586,213.66,213.64,2.3409]
[1736119449710,7.38610586,213.66,213.57,7.38610586]
[1736119449910,7.38610586,213.63,213.55,10.00610586]
[1736119450515,7.38610586,213.63,213.6,2.3413]
[1736119452114,7.38610586,213.63,213.61,2.3412]
[1736119456114,7.38610586,213.63,213.55,7.38610586]
[1736119456115,10.69376012,213.67,213.63,2.3409]
[1736119456315,7.38610586,213.66,213.63,2.3409]
[1736119456917,7.38610586,213.64,213.63,2.3409]
[1736119459222,10.69376012,213.67,213.63,2.3409]
[1736119459421,7.38610586,213.64,213.63,2.3409]
[1736119468321,7.38610586,213.66,213.65,2.3408]
[1736119468928,7.38610586,213.66,213.57,7.38610586]
[1736119469124,7.38610586,213.64,213.63,2.3409]
[1736119478235,7.38610586,213.66,213.63,2.3409]
[1736119481538,7.38610586,213.7,213.67,2.3405]
[1736119481733,7.38610586,213.7,213.61,7.38610586]
[1736119481932,7.38610586,213.7,213.63,7.38610586]
[1736119484238,7.38610586,213.7,213.65,2.3408]
[1736119484438,7.38610586,213.7,213.63,7.38610586]
[1736119485434,7.38610586,213.7,213.67,2.3405]
[1736119487937,7.38610586,213.68,213.61,2.6]
[1736119488133,7.38610586,213.65,213.64,2.3409]
[1736119488342,7.38610586,213.65,213.6,2.6]
[1736119489338,7.38610586,213.65,213.62,2.3411]
[1736119489539,7.38610586,213.65,213.57,4.4584]
[1736119489540,7.38610586,213.65,213.59,2.6]
[1736119490045,7.38610586,213.65,213.6,2.3413]
[1736119490342,7.38610586,213.65,213.58,2.6]
[1736119491243,7.38610586,213.65,213.61,2.3412]
[1736119491865,7.38610586,213.63,213.53,25.91091965]
[1736119492047,60.26535814,213.71,213.53,25.91091965]
[1736119492048,7.38610586,213.54,213.53,25.91091965]
[1736119492641,7.38610586,213.54,213.49,18.71440188]
[1736119493050,7.38610586,213.54,213.5,2.3425]
[1736119493245,7.38610586,213.54,213.49,18.71440188]
[1736119493950,7.38610586,213.54,213.49,21.05690188]
[1736119494647,7.38610586,213.54,213.49,19.59280188]
[1736119496552,7.38610586,213.54,213.5,2.3424]
[1736119498351,2.3408,213.66,213.58,2.3416]
[1736119498557,2.6,213.69,213.6,7.38610586]
[1736119498754,7.38610586,213.68,213.6,7.38610586]
[1736119499756,2.6,213.67,213.61,2.3412]
[1736119500779,7.38610586,213.66,213.61,2.3412]
[1736119503079,7.38610586,213.66,213.62,2.3411]
[1736119504758,7.38610586,213.66,213.63,2.341]
[1736119505056,2.6,213.68,213.63,2.341]
[1736119505253,5.259,213.74,213.68,2.3405]
[1736119505454,5.259,213.74,213.62,7.38610586]
[1736119505455,7.38610586,213.7,213.6,2.6]
[1736119505649,2.6,213.73,213.6,2.6]
[1736119505958,7.38610586,213.68,213.6,9.98610586]
[1736119506159,2.6,213.72,213.6,9.98610586]
[1736119506459,7.38610586,213.68,213.66,2.3406]
[1736119506662,2.9192,213.74,213.6,9.98610586]
[1736119506663,7.38610586,213.67,213.6,9.98610586]
[1736119508461,7.38610586,213.67,213.65,2.3408]
[1736119511351,24.0,213.62,213.49,146.97340259]
[1736119511562,7.38610586,213.57,213.49,146.97340259]
[1736119512065,7.38610586,213.55,213.49,146.97340259]
[1736119512362,7.38610586,213.55,213.53,2.3421]
[1736119513063,5.0413,213.61,213.54,2.3419]
[1736119513064,7.38610586,213.57,213.54,2.3419]
[1736119513265,7.38610586,213.57,213.5,7.38610586]
[1736119513863,7.38610586,213.59,213.55,2.3419]
[1736119515066,7.38610586,213.57,213.55,2.3419]
[1736119515867,7.38610586,213.57,213.5,7.38610586]
[1736119516368,7.38610586,213.57,213.52,2.3422]
[1736119516572,7.38610586,213.55,213.52,2.3422]
[1736119516770,7.38610586,213.55,213.49,17.25030188]
[1736119518473,7.38610586,213.55,213.53,2.3421]
[1736119519364,7.38610586,213.55,213.54,2.342]
[1736119519572,7.38610586,213.57,213.54,2.342]
[1736119523569,7.38610586,213.59,213.52,7.38610586]
[1736119523774,10.08610586,213.59,213.55,2.3418]
[1736119525678,7.38610586,213.57,213.55,2.3418]
[1736119529682,10.08610586,213.59,213.55,2.3418]
[1736119530885,7.38610586,213.57,213.55,2.3418]
[1736119537089,7.38610586,213.57,213.56,2.3418]
[1736119538786,7.38610586,213.57,213.55,2.3419]
[1736119539092,7.38610586,213.56,213.49,17.25030188]
[1736119539693,7.38610586,213.54,213.49,17.25030188]
[1736119541490,7.38610586,213.54,213.53,2.3421]
[1736119546488,10.10610586,213.54,213.51,2.3422]
[1736119546701,7.38610586,213.52,213.51,2.3422]
[1736119549889,7.38610586,213.52,213.49,17.25030188]
[1736119550789,7.38610586,213.52,213.51,2.3423]
[1736119565006,2.72,213.53,213.49,17.25030188]
[1736119565403,2.3412,213.62,213.55,2.3418]
[1736119565702,7.38610586,213.56,213.55,2.3418]
[1736119565890,10.10610586,213.56,213.55,2.3418]
[1736119583001,10.10610586,213.56,213.53,2.3421]
[1736119583198,7.38610586,213.54,213.53,2.3421]
[1736119583401,2.3417,213.57,213.53,2.3421]
[1736119583601,129.71961978,213.71,213.69,2.3403]
[1736119583808,129.71961978,213.69,213.63,7.38610586]
[1736119584008,129.71961978,213.69,213.65,7.38610586]
[1736119584508,129.71961978,213.69,213.65,8.86780586]
[1736119584708,7.38610586,213.74,213.65,8.86780586]
[1736119586001,7.38610586,213.74,213.67,7.38610586]
[1736119586408,7.38610586,213.74,213.67,9.72660586]
[1736119588507,10.04610586,213.74,213.67,9.72660586]
[1736119591407,10.04610586,213.74,213.68,2.3404]
[1736119593003,2.66,213.74,213.67,7.38610586]
[1736119593204,7.38610586,213.77,213.69,7.38610586]
[1736119593412,2.66,213.79,213.73,7.38610586]
[1736119593607,7.38610586,213.8,213.76,2.3396]
[1736119593811,7.38610586,213.8,213.73,7.38610586]
[1736119594211,7.38610586,213.8,213.67,2.66]
[1736119594212,2.3386,213.85,213.77,2.3394]
[1736119594516,7.38610586,213.82,213.77,2.3394]
[1736119597909,7.38610586,213.8,213.65,1.4817]
[1736119598107,7.38610586,213.76,213.72,2.34]
[1736119598934,7.38610586,213.74,213.66,2.66]
[1736119599272,4.9993,213.79,213.68,7.38610586]
[1736119599273,7.38610586,213.76,213.68,7.38610586]
[1736119600123,7.38610586,213.74,213.65,1.4817]
[1736119600434,7.38610586,213.72,213.68,2.3404]
[1736119600723,7.38610586,213.72,213.66,7.38610586]
[1736119601631,7.38610586,213.72,213.68,2.3404]
[1736119602614,7.38610586,213.72,213.69,2.3403]
[1736119603013,10.04610586,213.74,213.69,2.3403]
[1736119607522,10.04610586,213.74,213.7,2.3403]
[1736119609625,2.66,213.74,213.7,2.3403]
[1736119610024,4.4465,213.9,213.68,7.38610586]
[1736119610228,7.38610586,213.78,213.7,7.38610586]
[1736119610526,2.7,213.77,213.7,7.38610586]
[1736119611433,2.7,213.77,213.73,2.3398]
[1736119617138,2.7,213.77,213.74,2.3398]
[1736119619037,4.4465,213.9,213.74,7.38610586]
[1736119619336,7.38610586,213.8,213.74,7.38610586]
[1736119619731,7.38610586,213.8,213.77,2.3395]
[1736119621644,7.38610586,213.78,213.68,6.47772991]
[1736119621941,7.38610586,213.76,213.73,2.3399]
[1736119622544,10.08610586,213.76,213.72,2.34]
[1736119628533,10.08610586,213.76,213.68,7.38610586]
[1736119628733,10.08610586,213.76,213.73,2.3399]
[1736119629841,7.38610586,213.76,213.73,2.3399]
[1736119633743,7.38610586,213.76,213.74,2.3398]
[1736119642763,7.38610586,213.76,213.67,6.47772991]
[1736119642958,2.66,213.77,213.72,2.34]
[1736119642959,7.38610586,213.74,213.72,2.34]
[1736119644058,2.66,213.77,213.72,2.34]
[1736119644254,7.38610586,213.75,213.72,2.34]
[1736119647262,2.66,213.77,213.73,2.3399]
[1736119647665,7.38610586,213.76,213.73,2.3399]
[1736119647864,2.66,213.77,213.76,2.3396]
[1736119648065,7.38610586,213.79,213.73,7.38610586]
[1736119648362,10.04610586,213.79,213.73,7.38610586]
[1736119649165,2.66,213.79,213.77,2.3394]
[1736119650561,7.38610586,213.8,213.77,2.3394]
[1736119651065,2.66,213.79,213.77,2.3394]
[1736119651367,7.38610586,213.78,213.74,2.3398]
[1736119660169,7.38610586,213.78,213.75,2.3397]
[1736119662173,2.66,213.79,213.75,2.3397]
[1736119662374,7.38610586,213.77,213.75,2.3397]
[1736119662775,7.38610586,213.77,213.69,7.38610586]
[1736119662970,4.9993,213.79,213.69,7.38610586]
[1736119662971,7.38610586,213.75,213.69,7.38610586]
[1736119663971,7.38610586,213.75,213.67,13.86383577]
[1736119664372,2.62,213.74,213.67,13.86383577]
[1736119665170,2.62,213.74,213.65,1.4817]
[1736119665375,2.62,213.74,213.7,2.3402]
[1736119666375,2.62,213.74,213.71,2.3401]
[1736119672681,2.62,213.74,213.72,2.34]
[1736119672874,7.38610586,213.73,213.65,8.86780586]
[1736119673279,7.38610586,213.73,213.7,2.3402]
[1736119677983,7.38610586,213.71,213.68,2.3405]
[1736119678181,7.38610586,213.71,213.65,1.4817]
[1736119679478,7.38610586,213.71,213.67,2.3406]
[1736119679683,7.38610586,213.71,213.65,1.4817]
[1736119680285,7.38610586,213.71,213.68,2.3404]
[1736119681983,2.62,213.73,213.67,7.38610586]
[1736119681984,10.00610586,213.73,213.67,7.38610586]
[1736119682385,10.00610586,213.73,213.7,2.3402]
[1736119683387,10.00610586,213.73,213.67,7.38610586]
[1736119683581,10.00610586,213.73,213.71,2.3401]
[1736119702209,7.38610586,213.73,213.71,2.3401]
[1736119702512,2.6,213.72,213.71,2.3401]
[1736119706610,2.6,213.72,213.7,2.3402]
[1736119710010,7.38610586,213.71,213.7,2.3402]
[1736119710510,7.38610586,213.71,213.65,1.4817]
[1736119710811,7.38610586,213.69,213.65,1.4817]
[1736119711511,7.38610586,213.69,213.65,3.8225]
[1736119713814,7.38610586,213.69,213.65,2.3408]
[1736119715018,4.9401,213.72,213.66,2.3407]
[1736119715210,7.38610586,213.69,213.66,2.3407]
[1736119715611,4.9401,213.72,213.66,2.3407]
[1736119715815,7.38610586,213.69,213.66,2.3407]
[1736119722115,7.38610586,213.7,213.64,2.8854]
[1736119722314,2.6,213.72,213.64,2.8854]
[1736119722619,2.6,213.71,213.65,7.38610586]
[1736119722814,2.6,213.72,213.71,2.3401]
[1736119723715,2.6,213.72,213.67,7.38610586]
[1736119724316,6.81409617,213.78,213.67,7.38610586]
[1736119724514,9.98610586,213.77,213.69,7.38610586]
[1736119725118,2.6,213.76,213.71,2.3401]
[1736119725311,2.6,213.76,213.71,7.38610586]
[1736119725620,2.6,213.76,213.74,2.3398]
[1736119727219,2.6,213.76,213.73,2.3399]
[1736119729122,2.6,213.75,213.73,2.3399]
[1736119731422,2.6,213.75,213.74,2.3398]
[1736119733118,7.38610586,213.77,213.74,2.3398]
[1736119733323,2.6,213.76,213.74,2.3398]
[1736119740730,7.38610586,213.75,213.74,2.3398]
[1736119760046,9.98610586,213.75,213.74,2.3398]
[1736119769153,2.6,213.75,213.74,2.3398]
[1736119772554,9.98610586,213.75,213.74,2.3398]
[1736119772757,2.6,213.75,213.74,2.3398]
[1736119803783,14.20020203,213.78,213.7,7.38610586]
[1736119804083,2.6,213.77,213.7,7.38610586]
[1736119805686,7.38610586,213.76,213.7,7.38610586]
[1736119809086,7.38610586,213.76,213.68,7.38610586]
[1736119809581,7.38610586,213.76,213.75,2.3397]
[1736119811486,2.6,213.77,213.75,2.3397]
[1736119811687,9.98610586,213.77,213.75,2.3397]
[1736119814891,2.6,213.77,213.75,2.3397]
[1736119815090,9.98610586,213.77,213.75,2.3397]
[1736119823296,2.6,213.77,213.75,2.3397]
[1736119836610,7.38610586,213.78,213.75,2.3397]
[1736119836810,2.6,213.77,213.75,2.3397]
[1736119839716,53.52,213.91,213.71,7.38610586]
[1736119839911,7.38610586,213.84,213.75,7.38610586]
[1736119840112,2.6,213.83,213.77,7.38610586]
[1736119840311,9.98610586,213.84,213.77,7.38610586]
[1736119842313,7.38610586,213.84,213.77,7.38610586]
[1736119842519,2.6,213.83,213.77,7.38610586]
[1736119843015,2.6,213.83,213.81,2.339]
[1736119843621,2.6,213.83,213.82,2.3389]
[1736119844513,6.12306737,213.88,213.77,7.38610586]
[1736119844714,7.38610586,213.86,213.84,2.3387]
[1736119845021,7.38610586,213.86,213.79,7.38610586]
[1736119845229,7.38610586,213.86,213.84,2.3387]
[1736119845640,6.12306737,213.88,213.78,7.38610586]
[1736119845854,2.6,213.87,213.78,7.38610586]
[1736119846037,2.6,213.87,213.76,4.2982]
[1736119846038,7.38610586,213.85,213.76,4.2982]
[1736119846232,7.38610586,213.85,213.78,7.38610586]
[1736119847425,7.38610586,213.85,213.82,2.3389]
[1736119847930,7.38610586,213.85,213.78,7.38610586]
[1736119848125,7.38610586,213.85,213.83,2.3388]
[1736119849920,7.38610586,213.85,213.76,4.2982]
[1736119850124,7.38610586,213.81,213.79,2.3392]
[1736119850317,7.38610586,213.81,213.76,4.2982]
[1736119851121,7.38610586,213.81,213.78,2.3393]
[1736119851517,7.38610586,213.81,213.76,4.2982]
[1736119852111,7.38610586,213.77,213.76,1.5081]
[1736119852825,7.38610586,213.79,213.76,3.8477]
[1736119853021,7.38610586,213.79,213.76,1.5081]
[1736119854425,7.38610586,213.79,213.77,2.3395]
[1736119854920,7.38610586,213.79,213.75,3.69869879]
[1736119855142,7.38610586,213.77,213.76,2.3396]
[1736119856226,2.6,213.81,213.76,2.3396]
[1736119856528,7.38610586,213.77,213.76,2.3396]
[1736119858326,7.38610586,213.79,213.76,2.3396]
[1736119858827,7.38610586,213.79,213.75,3.69869879]
[1736119859029,7.38610586,213.79,213.77,2.3394]
[1736119860329,2.6,213.81,213.77,2.3394]
[1736119860729,7.38610586,213.8,213.77,2.3394]
[1736119863941,7.38610586,213.8,213.78,2.3394]
[1736119864435,2.6,213.81,213.8,2.3392]
[1736119869336,7.38610586,213.84,213.76,7.38610586]
[1736119869542,2.6,213.83,213.81,2.339]
[1736119873440,7.38610586,213.82,213.81,2.339]
[1736119875145,2.6,213.83,213.81,2.339]
[1736119875447,7.38610586,213.82,213.81,2.339]
[1736119878653,7.38610586,213.82,213.78,2.3394]
[1736119878842,7.38610586,213.79,213.78,2.3394]
[1736119879949,7.38610586,213.79,213.77,2.3395]
[1736119881048,7.38610586,213.79,213.75,3.69869879]
[1736119881249,7.38610586,213.79,213.76,2.3396]
[1736119882351,9.98610586,213.79,213.76,2.3396]
[1736119888058,9.98610586,213.79,213.75,6.03839879]
[1736119888258,7.38610586,213.77,213.71,44.15215295]
[1736119888456,7.38610586,213.74,213.71,42.72905295]
[1736119888656,9.98610586,213.74,213.71,42.72905295]
[1736119888856,2.6,213.74,213.72,2.34]
[1736119893160,7.38610586,213.73,213.71,2.3402]
[1736119894758,2.6,213.74,213.72,2.34]
[1736119896658,45.18349035,213.8,213.73,2.3399]
[1736119896861,45.18349035,213.8,213.71,7.38610586]
[1736119896862,7.38610586,213.78,213.71,7.38610586]
[1736119897358,7.38610586,213.78,213.74,2.3398]
[1736119898860,7.38610586,213.76,213.74,2.3398]
[1736119905864,2.6,213.75,213.74,2.3398]
[1736119914568,42.84419035,213.8,213.73,7.38610586]
[1736119914871,2.6,213.81,213.76,7.38610586]
[1736119915471,7.38610586,213.84,213.79,2.3393]
[1736119915677,2.6,213.83,213.79,2.3393]
[1736119916872,2.6,213.83,213.76,7.38610586]
[1736119917080,2.6,213.83,213.8,2.3392]
[1736119918077,7.38610586,213.82,213.8,2.3392]
[1736119923991,1.4122,213.87,213.8,7.38610586]
[1736119924192,1.4122,213.87,213.78,7.38610586]
[1736119924193,7.38610586,213.85,213.78,7.38610586]
[1736119924995,7.38610586,213.85,213.83,2.3387]
[1736119926988,2.6,213.87,213.83,2.3387]
[1736119927194,7.38610586,213.85,213.83,2.3387]
[1736119927392,7.38610586,213.85,213.76,3.47435681]
[1736119927393,7.38610586,213.85,213.76,10.86046267]
[1736119927594,2.6,213.87,213.76,10.86046267]
[1736119927595,7.38610586,213.82,213.76,10.86046267]
[1736119927794,7.38610586,213.8,213.76,3.47435681]
[1736119928299,7.38610586,213.8,213.78,2.3393]
[1736119938707,7.38610586,213.81,213.78,2.3393]
[1736119940202,2.6,213.82,213.76,10.86046267]
[1736119940403,7.38610586,213.86,213.79,7.38610586]
[1736119940609,9.98610586,213.86,213.79,7.38610586]
[1736119942102,2.6,213.86,213.83,2.3388]
[1736119942405,7.38610586,213.85,213.83,2.3388]
[1736119945312,7.38610586,213.85,213.76,3.47435681]
[1736119945513,7.38610586,213.8,213.76,3.47435681]
[1736119945901,7.38610586,213.82,213.76,3.47435681]
[1736119946611,7.38610586,213.82,213.78,2.3394]
[1736119947316,7.38610586,213.82,213.77,2.3395]
[1736119949110,7.38610586,213.82,213.78,2.3394]
[1736119952315,2.3386,213.85,213.79,2.3393]
[1736119952518,7.38610586,213.83,213.76,10.86046267]
[1736119953023,7.38610586,213.83,213.79,2.3392]
[1736119955114,7.38610586,213.83,213.8,2.3391]
[1736119959318,4.9385,213.86,213.8,2.3391]
[1736119959518,7.38610586,213.84,213.81,2.3391]
[1736119967622,7.38610586,213.84,213.76,10.86046267]
[1736119968122,7.38610586,213.84,213.81,2.339]
[1736119976029,7.38610586,213.82,213.79,2.3392]
[1736119977431,7.38610586,213.8,213.78,2.3394]
[1736119980634,7.38610586,213.8,213.76,3.47435681]
[1736119980935,7.38610586,213.78,213.76,3.47435681]
[1736119981435,9.72550586,213.78,213.76,3.47435681]
[1736119981636,9.72550586,213.78,213.75,75.47820326]
[1736119981827,9.72550586,213.78,213.72,2.34]